Cogmind - Beta 15 @@@ ROGUE MODE // 2025.05.21 @ 19:47:56 Player: Waste Result: Destroyed by G-47 Trooper with Particle Gun Performance ------------- Evolutions (0) 0 Regions Visited (2) 400 Robots Destroyed (17) 85 Value Destroyed (351) 351 Prototype IDs (0) 0 Alien Tech Used (0) 0 Bonus (0) 0 TOTAL SCORE: 836 Bonus ------- None Cogmind --------- Core Integrity 0/250 Matter 300/300 Energy 99/100 System Corruption 2% Temperature Cool (9) Movement Core (50) Location -10/Mines Parts ------- > --- POWER (1) -------- (None) > --- PROPULSION (2) --- (None) > --- UTILITY (2) ------ (None) > --- WEAPON (2) ------- (None) > --- INVENTORY (5) ---- Light Treads Light Treads Wheel Compact Wheel High-capacity Matter Pod (200) Peak State ------------ > --- POWER ------------ Ion Engine > --- PROPULSION ------- Aluminum Leg Aluminum Leg > --- UTILITY ---------- Heat Sink Large Storage Unit > --- WEAPON ----------- Assault Rifle Assault Rifle > --- INVENTORY -------- Ion Engine Light Ion Engine Light Treads Light Treads Light Treads Wheel Compact Wheel Small Storage Unit Light Assault Rifle Grenade Launcher [Rating: 8] Favorites ----------- Power Ion Engine Engine Ion Engine Propulsion Aluminum Leg Leg Aluminum Leg Utility Large Storage Unit Device Heat Sink Storage Large Storage Unit Protection Light Armor Plating Weapon Assault Rifle Ballistic Gun Assault Rifle Build | -11 -10 -10 ------- Run | Yrd Mat Min Slots Evolved . | . . . Power . | . . . Propulsion . | . . . Utility . | . . . Weapon . | . . . Parts Attached 11 | . 7 4 Power 3 | . 3 . Engine 3 | . 3 . Core . | . . . Reactor . | . . . Propulsion 3 | . 2 1 Treads . | . . . Leg 3 | . 2 1 Wheel . | . . . Hover . | . . . Flight . | . . . Utility 3 | . 2 1 Device 1 | . 1 . Storage 1 | . 1 . Processor . | . . . Hackware . | . . . Protection 1 | . . 1 Artifact . | . . . Weapon 2 | . . 2 Energy Gun . | . . . Energy Cannon . | . . . Ballistic Gun 2 | . . 2 Ballistic Cannon . | . . . Launcher . | . . . Special Weapon . | . . . Impact Weapon . | . . . Slashing Weapon . | . . . Piercing Weapon . | . . . Special Melee Weapon . | . . . Unidentified Prototypes . | . . . Parts Lost 5 | . 1 4 Power 1 | . 1 . Propulsion 1 | . . 1 Utility 1 | . . 1 Weapon 2 | . . 2 Highest Loss Streak 4 | . 1 4 To Critical Strikes . | . . . Average Backups 12 | . 12 12 Power 2 | . 2 1 Propulsion 5 | . 5 6 Utility 1 | . . 1 Weapon 3 | . 3 3 Tool/Special . | . . . Unused Backups 12 | . . 12 Power 1 | . . 1 Propulsion 2 | . . 2 Utility 3 | . . 3 Weapon 6 | . . 6 Tool/Special . | . . . Average Slot Usage (%) 93 | . 98 81 Engine 13 | . 14 11 Leg 26 | . 28 23 Device 12 | . 12 10 Storage 13 | . 14 11 Ballistic Gun 26 | . 28 22 Peak Build Rating 8 | . 8 8 Average Rating 7 | . 7 6 On Entrance 6 | 6 6 8 Naked Turns 107 | . . 107 Heaviest Build 32 | 12 30 32 Greatest Support 20 | 20 20 20 Greatest Overweight (x) 1 | . 1 1 Average Overweight (x) . | . . . Largest Inventory Capacity 15 | . 15 15 Average Capacity 14 | . 14 13 Most Carried 15 | . 15 15 Average Carried 12 | . 12 12 Final Capacity 15 | 8 15 5 Final Carried 14 | 6 14 5 Class Distribution -------------------- 100% | Mutant Dominant Class ---------------- Mutant | -10/Materials Mutant | -10/Mines Resources | -11 -10 -10 ----------- Run | Yrd Mat Min Matter Collected 611 | 200 335 76 Remotely . | . . . Salvage Created 411 | . 391 20 Parts 38 | . 35 3 Haulers Intercepted . | . . . Recyclers Shooed . | . . . Parts Field Recycled . | . . . Retrieved Matter . | . . . Parts Self-Destructed . | . . . Prevented . | . . . Kills | -11 -10 -10 ------- Run | Yrd Mat Min Combat Hostiles Destroyed 17 | . 15 2 Guns 17 | . 15 2 Classes Destroyed 2 | . 2 . Swarmer 10 | . 8 2 Grunt 7 | . 7 . Best Kill Streak 4 | . 4 2 Combat Bots Only 4 | . 4 2 Max Kills in Single Turn 1 | . 1 1 Gunslinging . | . . . Exploded . | . . . Melee . | . . . Uniques/NPCs Destroyed . | . . . Combat | -11 -10 -10 -------- Run | Yrd Mat Min Hostile Shots Fired 97 | . 61 36 Missed 32 | . 24 8 Hits 65 | . 37 28 Projectile 65 | . 37 28 AOE 8 | . . 8 Critical Strikes 1 | . 1 . Damage Taken 1022 | . 489 533 Core 261 | . 85 176 Absorbed by Shields . | . . . Core Remaining (%) 100 | 100 . . Volleys Fired 51 | . 45 6 Largest 2 | . 2 2 Hottest 40 | . 40 40 Shots Fired 102 | . 90 12 Gun 102 | . 90 12 Cannon . | . . . Launcher . | . . . Special . | . . . Kinetic 102 | . 90 12 Thermal . | . . . Explosive . | . . . Electromagnetic . | . . . Robot Hit Streak 20 | . 20 1 Robot Miss Streak 4 | . 4 4 Penetration Max . | . . . Secondary Targets 1 | . . 1 Max Gunslinging Chain 1 | . . 1 Shots Hit Robots 59 | . 56 3 Core Hits 26 | . 23 3 Critical Kills 2 | . 2 . Critical Parts Destroyed . | . . . Critical Strikes 2 | . 2 . Destroy 2 | . 2 . Melee Attacks . | . . . Impact . | . . . Slashing . | . . . Piercing . | . . . Sneak Attacks . | . . . Combat Hostiles . | . . . Follow-up Attacks . | . . . Damage Inflicted 794 | . 748 46 Guns 769 | . 729 40 Cannons . | . . . Explosions . | . . . Melee . | . . . Ramming 25 | . 19 6 Kinetic 769 | . 729 40 Thermal . | . . . Explosive . | . . . Electromagnetic . | . . . Impact . | . . . Slashing . | . . . Piercing . | . . . Highest Corruption 2 | . 2 2 Average Corruption 1 | . 1 2 Corruption Purged . | . . . Corruption Blocked . | . . . Effects 8 | . 2 6 Message Errors 2 | . . 2 Matter Fused 1 | . 1 . Energy Discharges 2 | . . 2 Data Loss (minor) 1 | . . 1 Data Loss (major) 2 | . 1 1 Overload Shots . | . . . Overflow Damage . | . . . Projectiles . | . . . Explosions . | . . . Melee . | . . . Knockbacks . | . . . Impact . | . . . Kinetic . | . . . Secondary . | . . . Self-Inflicted Damage . | . . . Shots . | . . . Rammed . | . . . Targets Rammed 5 | . 4 1 Kicked 5 | . 4 1 Crushed . | . . . Highest Temperature 10 | . 10 . Average Temperature 10 | . 10 . Received Heat Transfer 192 | . 171 21 Siege Activations . | . . . Martial Activations . | . . . Shielding Activations . | . . . Robots Disrupted . | . . . Combat Hostiles . | . . . Robots Corrupted . | . . . Combat Hostiles . | . . . Parts Fried . | . . . Impact Corruptions . | . . . Robots Melted . | . . . Combat Hostiles . | . . . Parts Melted . | . . . Heat Transferred . | . . . Parts Sabotaged . | . . . Parts Stolen . | . . . Parts Stripped . | . . . Power Chain Reactions . | . . . Alert | -11 -10 -10 ------- Run | Yrd Mat Min Maximum Alert Level . | . . . Low Security (%) 100 | . 100 100 Level 1 . | . . . Level 2 . | . . . Level 3 . | . . . Level 4 . | . . . Level 5 . | . . . High Security . | . . . Max Security . | . . . Peak Influence 126 | . 126 44 Initial . | . . . Average 45 | . 63 5 Influence Increases 528 | . 428 100 Destroy 0b10 Robot/C 340 | . 300 40 Destroy Leader 50 | . 50 . Successful Hack 17 | . 17 . Destroy Structure 1 | . 1 . Lose Combat Pursuer 120 | . 60 60 Influence Decreases 492 | . 428 64 Time Decay 482 | . 418 64 Lost Part 10 | . 10 . Squads Dispatched 3 | . 3 . Investigation 1 | . 1 . Extermination . | . . . Reinforcement 2 | . 2 . Assault . | . . . Garrison . | . . . Intercept . | . . . Searches Triggered . | . . . Construction Impeded . | . . . Haulers Reinforced . | . . . Active Scanning Responses . | . . . Cargo Convoy Interrupts . | . . . Stealth | -11 -10 -10 --------- Run | Yrd Mat Min Distress Signals 7 | . 7 . Communications Jammed . | . . . Distress Signals . | . . . Times Spotted 39 | . 28 11 Peak Tracking Total 4 | . 4 3 Tactical Retreats 5 | . 3 2 Traps | -11 -10 -10 ------- Run | Yrd Mat Min Traps Triggered 4 | . 4 . Indirectly . | . . . Trap Hack Attempts . | . . . Triggered . | . . . Disarmed . | . . . Reprogrammed . | . . . Reused . | . . . Traps Extracted . | . . . Installed . | . . . Triggered . | . . . Machines | -11 -10 -10 ---------- Run | Yrd Mat Min Machines Disabled . | . . . Max in Single Turn . | . . . Machines Repaired . | . . . Machines Dismantled . | . . . Machines Sabotaged . | . . . Overloaded Fab Kills . | . . . Hacking | -11 -10 -10 --------- Run | Yrd Mat Min Machines Accessed 3 | . 3 . Terminals 3 | . 3 . Fabricators . | . . . Repair Stations . | . . . Recycling Units . | . . . Scanalyzers . | . . . Garrison Access . | . . . Total Hacks 10 | . 10 . Successful 4 | . 4 . Failed 6 | . 6 . Catastrophic 1 | . 1 . Database Lockouts . | . . . Manual 10 | . 10 . Terminals 10 | . 10 . Fabricators . | . . . Repair Stations . | . . . Recycling Units . | . . . Scanalyzers . | . . . Garrison Access . | . . . Terminal Hacks 2 | . 2 . Robot Analysis 2 | . 2 . Fabricator Hacks . | . . . Repair Station Hacks . | . . . Recycling Unit Hacks . | . . . Scanalyzer . | . . . Garrison Access Hacks . | . . . Unauthorized Hacks 2 | . 2 . Terminals 2 | . 2 . Botnet 2 | . 2 . Fabricators . | . . . Repair Stations . | . . . Recycling Units . | . . . Scanalyzers . | . . . Garrison Access . | . . . Data Cores Recovered . | . . . Used . | . . . Hacking Detections 3 | . 3 . Full Trace Events . | . . . Feedback Events . | . . . Feedback Blocked . | . . . Robot Schematics Acquired . | . . . Robots Built . | . . . Authchips . | . . . Time . | . . . Total Robot Build Rating . | . . . Part Schematics Acquired . | . . . Parts Built . | . . . Authchips . | . . . Time . | . . . Total Part Build Rating . | . . . Parts Repaired . | . . . Time . | . . . Parts Recycled . | . . . Recycled Matter . | . . . Retrieved Matter . | . . . Retrieved Components . | . . . Parts Scanalyzed . | . . . Part Schematics Acquired . | . . . Parts Damaged . | . . . Bothacking | -11 -10 -10 ------------ Run | Yrd Mat Min Used RIF Installer . | . . . Robots Hacked . | . . . Non-combat . | . . . Combat . | . . . Robot Hacks Applied . | . . . Relay Couplers Released . | . . . Fabnet Peak Effective % . | . . . Robots Rewired . | . . . Allies Hacked . | . . . Hacks Repelled . | . . . Allies | -11 -10 -10 -------- Run | Yrd Mat Min Total Allies . | . . . Largest Group . | . . . Highest-Rated Group . | . . . Highest-Rated Ally . | . . . Total Orders . | . . . Ally Attacks . | . . . Total Damage . | . . . Kills . | . . . Allies Corrupted . | . . . Allies Melted . | . . . Intel | -11 -10 -10 ------- Run | Yrd Mat Min Active Infowar (turns) . | . . . Robot Analysis Total 2 | . 2 . Derelict Logs Recovered 1 | . . 1 Drone Launches . | . . . Drone Recoveries . | . . . Exploration | -11 -10 -10 ------------- Run | Yrd Mat Min Turns Passed 1816 | . 1265 551 Spaces Moved 1001 | 1 588 412 Core 193 | . . 193 Treads . | . . . Legs 808 | 1 588 219 Wheels . | . . . Hover . | . . . Flight . | . . . Fastest Speed 50 | 120 120 50 Average Speed 159 | 120 184 124 Slowest Speed 190 | 120 190 190 Overloaded Moves . | . . . Propulsion Burnouts . | . . . Robots Hopped . | . . . Potential Cave-ins . | . . . Cave-ins Triggered . | . . . Exploration Rate (%) 53 | 1 91 68 Regions Visited 2 Branch Regions 1 Pre-discovered Areas . | . . . Known Exits Taken . | . . . Unknown Exits Taken 2 | 1 1 . Scrap Searched 1 | . . 1 Spaces Dug . | . . . Terrain Destroyed . | . . . Melee . | . . . Projectile . | . . . AOE . | . . . Terrain Rammed . | . . . Walls Destroyed . | . . . Machines Disabled . | . . . Actions | -11 -10 -10 --------- Run | Yrd Mat Min Total 1114 | . 675 439 Wait 37 | . 27 10 Move 999 | . 587 412 Hop . | . . . Pick Up 6 | . 4 2 Fast Attach 2 | . 2 . Attach 1 | . 1 . Detach 1 | . 1 . Swap 8 | . 4 4 Drop 4 | . . 4 Fire 51 | . 45 6 Melee . | . . . Ram . | . . . Kick 5 | . 4 1 Crush . | . . . Escape Stasis . | . . . Rewire . | . . . Trap . | . . . Miscellaneous . | . . . Route ------- -11/Scrapyard -10/Materials (discovered 4 exits: [*Mat x3] / [*Min]) -10/Mines (discovered 1 exit: [*Mat]) History --------- Turn | Location | Event 1 | -11/Scrapyard | Discovered new exit (range 0) 1 | -11/Scrapyard | Entered Materials 216 | -10/Materials | Discovered new exit (range 14) 314 | -10/Materials | Build established: Mutant 376 | -10/Materials | Discovered new exit (range 4) 480 | -10/Materials | Discovered new exit (range 16) 597 | -10/Materials | Discovered new exit (range 11) 901 | -10/Materials | Derelicts attacked the area 1266 | -10/Materials | Entered Mines 1402 | -10/Mines | Discovered new exit (range 5) 1502 | -10/Mines | YI-UF0 nonchalantly dropped a Grenade Launcher on the ground 1625 | -10/Mines | Learned location of 1 exit from Materials 1633 | -10/Mines | Found DCF Scrap (13 items) 1677 | -10/Mines | Assembled infested the area 1707 | -10/Mines | Core integrity fell below 50% 1710 | -10/Mines | Released all parts (3) 1715 | -10/Mines | Core integrity fell below 20% 1741 | -10/Mines | Lost 4 parts (1n1u2w) 1817 | -10/Mines | Destroyed by G-47 Trooper with Particle Gun Last Messages --------------- 01677_ ALERT: Infestation in the mines, dispatching Demolisher response squad. 01689_ HINU: UF=NF 6/OM0T/|HRXBA0KX3KBEXACO: 01691_ T-07 Excavator destroyed. 01697_ C-30 ARC bursts open, deploying its payload. 01697_ D-53 Grenadier unfolds itself. 01702_ R-06 Scavenger destroyed. 01703_ Lgt. Armor Plating destroyed. 01703_ YI-UF0: "BAROOM!" 01703_ as-11622 destroyed. 01705_ System corrupted: Component data lost. 01705_ The unstable cave ceiling collapses. 01706_ Assault Rifle destroyed. 01710_ The unstable cave ceiling collapses. 01710_ Aluminum Leg destroyed. 01710_ Released Aluminum Leg. 01710_ Released Ion Engine. 01710_ Released Lrg. Storage Unit. 01711_ The unstable cave ceiling collapses. 01740_ System corrupted: Energy discharge (-36). Map ----- +----------------------------------------------------+ | | | | | | | | | | | | | | | | | ???????????????????????????????????????????? | | ???????????????????????????????????????????? | | ???????????????????????????????????????????? | | ????????????????????????????????#??????????? | | ???????????????????????????????? ??????????? | | ???????????????????????????????# #?????????? | | ???"""????????????????????##???# #?????????? | | ??? ???????????????????# ??? #?????????? | | ??? ???????????????????# #???# #?????????? | | ??# #???????????????????# #???# #?????????? | | ??# #???????####????????# #???# #?????????? | | ??# #??????## #????????# ##### ####??????? | | ??# #??????# #????????# ## #??????? | | ??# #?????## ?????##### ## """#??????? | | ??# #?????# #?????# """#??????? | | ??# #????## ##????# ###### """#??????? | | ??# #???## ###### #????# #??????? | | ??# #??## @ #????# #??????? | | ??# #??# #####g###????#### ###??????? | | ??# #?## ##???# #?????????# #????????? | | ??# ### #????# #?????????# #????????? | | ??# #????# ####??????# #????????? | | ??# #???## ###???# #####????? | | ??#### ##???# """ ##### #????? | | ???## ####????# """ ###### #????? | | ???# ##???????# """ ?# #???## #????? | | ???# #????????# #?# #??## ###??? | | ???## ##?????????# ### #### ##?? | | ????#####???????????## #?? | | ?????????????????????## ##? | | ???????########???????# ## ## #? | | ??????## ## ##??????# ## ### #? | | ??????# ##?????## ## #?## ##? | | ??????# #?????## ## #??## #?? | | ??????## ## ####### ### ##### ##? | | ???????###### ## ##?# ## | | ????????????## #??######## # | | ?????????????# ##?????????## | | ????????????## ######?####??????## | | ?????????#### ###?????## ##??????# | | ????????## ##???????# ##?????## | | ????????# ##????????#% ##?????###### | +----------------------------------------------------+ Best States ------------- Heat Dissipation 35 Energy Generation 10 Energy Capacity 250 Matter Stores 300 Matter Capacity 300 Sight Range 16 Terrain Scan Density 10 Armor Coverage 150 Evasion (%) 55 Item Schematics ----------------- None Robot Schematics ------------------ None Fabricated ------------ Nothing Repaired ---------- Nothing Alien Tech Used ----------------- None Achievements -------------- None Challenges ------------ None Game ------ Seed ReinforcedProtonCoupler Manual? 0 Play Time 00:08:21 Cumulative 366.7 hours Start 2025.05.21 @ 19:40:54 End 2025.05.21 @ 19:47:56 Sessions 1 Manual Loads 0 Difficulty Rogue Special Mode None Game No. 464 Rogue 464 Adventurer 0 Explorer 0 Win Type - Total 29 Types 13/1/9/1/1/1/0/1/1/1 Lore% 86 Gallery% 78 Achievement% 76 Wizard Run 0 Options --------- Layout 0 ASCII 0 Keyboard 0 Movement Numpad Keybinds 0 Fullscreen 1 Font 18/SmallcapsGlow Map View 76x50 Zoom Use 0% Tactical HUD 1 Map Filters NONE Filters NONE Steam 1 RUN: 2498ba81-88c8-43dd-a7ef-17c99c2654c7